[Event "2. Itzehoer Schach Open"]
[Site "Itzehoe, Germany"]
[Date "2023.04.29"]
[Round "1.35"]
[White "Fuhrmann, Jeppe"]
[Black "Hieke, Jonas"]
[Result "1/2-1/2"]
[TimeControl "90 min / 40 Züge + 30 min + 30 Sek pro Zug"]
[WhiteElo "1379"]
[BlackElo "1584"]

1. e4 {[%clk 01:30:57]} {[%emt 00:00:02]} e5 {[%clk 01:30:56]} {[%emt
00:00:04]} 2. Nf3 {[%clk 01:31:18]} {[%emt 00:00:10]} Nc6 {[%clk 01:31:21]}
{[%emt 00:00:05]} 3. Bc4 {[%clk 01:31:44]} {[%emt 00:00:04]} Nf6 {[%clk
01:31:45]} {[%emt 00:00:05]} 4. d3 {[%clk 01:31:58]} {[%emt 00:00:17]} Bc5
{[%clk 01:32:09]} {[%emt 00:00:05]} 5. O-O {[%clk 01:31:35]} {[%emt 00:00:53]}
d6 {[%clk 01:32:36]} {[%emt 00:00:04]} 6. c3 {[%clk 01:31:45]} {[%emt
00:00:20]} Bg4 {[%clk 01:31:13]} {[%emt 00:01:52]} 7. Be3 {[%clk 01:31:02]}
{[%emt 00:01:14]} Bb6 {[%clk 01:28:30]} {[%emt 00:03:12]} 8. Nbd2 {[%clk
01:28:45]} {[%emt 00:02:47]} O-O {[%clk 01:25:09]} {[%emt 00:03:51]} 9. Bb3
{[%clk 01:26:44]} {[%emt 00:02:31]} Ne7 {[%clk 01:19:52]} {[%emt 00:05:47]} 10.
Re1 {[%clk 01:23:42]} {[%emt 00:03:32]} Ng6 {[%clk 01:19:39]} {[%emt 00:00:42]}
11. Nf1 {[%clk 01:23:01]} {[%emt 00:01:12]} Nh4 {[%clk 01:19:36]} {[%emt
00:00:32]} 12. N1d2 {[%clk 01:19:45]} {[%emt 00:03:47]} Nd7 {[%clk 01:19:28]}
{[%emt 00:00:37]} 13. h3 {[%clk 01:15:01]} {[%emt 00:05:14]} Nxf3+ {[%clk
01:17:59]} {[%emt 00:01:59]} 14. Nxf3 {[%clk 01:15:25]} {[%emt 00:00:07]} Bh5
{[%clk 01:17:25]} {[%emt 00:01:04]} 15. g4 {[%clk 01:04:45]} {[%emt 00:11:12]}
Bg6 {[%clk 01:17:45]} {[%emt 00:00:08]} 16. Bg5 {[%clk 01:04:14]} {[%emt
00:01:01]} Qe8 {[%clk 01:17:22]} {[%emt 00:00:54]} 17. Nh4 {[%clk 01:00:38]}
{[%emt 00:04:06]} Kh8 {[%clk 01:17:33]} {[%emt 00:00:17]} 18. Be3 {[%clk
00:57:12]} {[%emt 00:03:57]} f6 {[%clk 01:15:44]} {[%emt 00:02:19]} 19. Nxg6+
{[%clk 00:48:14]} {[%emt 00:09:28]} Qxg6 {[%clk 01:16:03]} {[%emt 00:00:11]} 20.
Qf3 {[%clk 00:42:29]} {[%emt 00:06:15]} Nc5 {[%clk 01:14:59]} {[%emt 00:01:29]}
21. Bc4 {[%clk 00:40:21]} {[%emt 00:02:44]} Rfe8 {[%clk 01:06:19]} {[%emt
00:09:09]} 22. Kh2 {[%clk 00:31:51]} {[%emt 00:09:01]} Ne6 {[%clk 01:03:25]}
{[%emt 00:03:23]} 1/2-1/2

[Event "2. Itzehoer Schach Open"]
[Site "Itzehoe, Germany"]
[Date "2023.04.29"]
[Round "1.12"]
[White "Nahnsen, Kenneth"]
[Black "Papenfuss, Kai"]
[Result "1-0"]
[TimeControl "90 min / 40 Züge + 30 min + 30 Sek pro Zug"]
[WhiteElo "2021"]
[BlackElo "1751"]

1. d4 {[%clk 01:30:54]} {[%emt 00:00:06]} d5 {[%clk 01:30:54]} {[%emt
00:00:07]} 2. c4 {[%clk 01:31:17]} {[%emt 00:00:06]} e6 {[%clk 01:31:18]}
{[%emt 00:00:06]} 3. Nf3 {[%clk 01:31:43]} {[%emt 00:00:05]} c6 {[%clk
01:31:37]} {[%emt 00:00:11]} 4. g3 {[%clk 01:32:07]} {[%emt 00:00:05]} Nd7
{[%clk 01:30:06]} {[%emt 00:02:02]} 5. Bg2 {[%clk 01:32:32]} {[%emt 00:00:04]}
Bd6 {[%clk 01:27:21]} {[%emt 00:03:14]} 6. Qc2 {[%clk 01:32:43]} {[%emt
00:00:20]} f5 {[%clk 01:26:44]} {[%emt 00:01:07]} 7. Bf4 {[%clk 01:32:31]}
{[%emt 00:00:41]} Bb4+ {[%clk 01:24:18]} {[%emt 00:02:57]} 8. Nbd2 {[%clk
01:32:41]} {[%emt 00:00:20]} Ngf6 {[%clk 01:22:56]} {[%emt 00:01:52]} 9. a3
{[%clk 01:33:03]} {[%emt 00:00:09]} Be7 {[%clk 01:22:52]} {[%emt 00:00:34]} 10.
O-O {[%clk 01:33:25]} {[%emt 00:00:07]} O-O {[%clk 01:21:53]} {[%emt 00:01:29]}
11. b4 {[%clk 01:33:35]} {[%emt 00:00:21]} Ne4 {[%clk 01:21:18]} {[%emt
00:01:04]} 12. h4 {[%clk 01:30:44]} {[%emt 00:03:20]} Ndf6 {[%clk 01:08:07]}
{[%emt 00:13:42]} 13. Rab1 {[%clk 01:29:23]} {[%emt 00:01:51]} a5 {[%clk
01:04:50]} {[%emt 00:03:47]} 14. c5 {[%clk 01:27:00]} {[%emt 00:02:53]} b6
{[%clk 01:01:10]} {[%emt 00:04:10]} 15. Ne5 {[%clk 01:27:03]} {[%emt 00:00:28]}
Bd7 {[%clk 00:54:33]} {[%emt 00:07:07]} 16. Nxe4 {[%clk 01:13:56]} {[%emt
00:13:36]} fxe4 {[%clk 00:49:40]} {[%emt 00:05:23]} 17. cxb6 {[%clk 01:08:06]}
{[%emt 00:06:20]} Qxb6 {[%clk 00:45:51]} {[%emt 00:04:20]} 18. bxa5 {[%clk
01:07:35]} {[%emt 00:01:00]} Qa6 {[%clk 00:37:17]} {[%emt 00:09:04]} 19. Bh3
{[%clk 01:07:30]} {[%emt 00:00:36]} Qc8 {[%clk 00:34:27]} {[%emt 00:03:19]} 20.
Qb3 {[%clk 01:02:29]} {[%emt 00:05:31]} Rxa5 {[%clk 00:32:13]} {[%emt
00:02:44]} 21. Qb7 {[%clk 01:02:16]} {[%emt 00:00:43]} Rb5 {[%clk 00:25:08]}
{[%emt 00:07:35]} 22. Qxc8 {[%clk 00:54:40]} {[%emt 00:08:06]} Bxc8 {[%clk
00:24:11]} {[%emt 00:01:26]} 23. Nxc6 {[%clk 00:54:59]} {[%emt 00:00:10]} Rxb1
{[%clk 00:23:53]} {[%emt 00:00:49]} 24. Nxe7+ {[%clk 00:55:19]} {[%emt
00:00:10]} Kf7 {[%clk 00:23:34]} {[%emt 00:00:49]} 25. Rxb1 {[%clk 00:55:28]}
{[%emt 00:00:21]} Kxe7 {[%clk 00:23:44]} {[%emt 00:00:21]} 26. Bd2 {[%clk
00:55:03]} {[%emt 00:00:54]} Rf7 {[%clk 00:22:06]} {[%emt 00:02:08]} 27. a4
{[%clk 00:54:10]} {[%emt 00:01:23]} Nd7 {[%clk 00:18:02]} {[%emt 00:04:34]} 28.
Rc1 {[%clk 00:52:14]} {[%emt 00:02:26]} Ba6 {[%clk 00:15:40]} {[%emt 00:02:52]}
29. Rc6 {[%clk 00:50:07]} {[%emt 00:02:36]} Bxe2 {[%clk 00:15:41]} {[%emt
00:00:30]} 30. Bxe6 {[%clk 00:50:07]} {[%emt 00:00:30]} Rf3 {[%clk 00:14:38]}
{[%emt 00:01:33]} 31. Bg4 {[%clk 00:47:39]} {[%emt 00:02:57]} Rb3 {[%clk
00:12:16]} {[%emt 00:02:53]} 32. Bxe2 {[%clk 00:47:53]} {[%emt 00:00:16]} Rb2
{[%clk 00:12:38]} {[%emt 00:00:09]} 33. Bg5+ {[%clk 00:48:15]} {[%emt
00:00:07]} Nf6 {[%clk 00:12:25]} {[%emt 00:00:43]} 34. Bb5 {[%clk 00:48:39]}
{[%emt 00:00:06]} Rb4 {[%clk 00:11:37]} {[%emt 00:01:18]} 1-0

[Event "2. Itzehoer Schach Open"]
[Site "Itzehoe, Germany"]
[Date "2023.04.29"]
[Round "1.19"]
[White "Schacht, David"]
[Black "Recklies, Volker"]
[Result "1/2-1/2"]
[TimeControl "90 min / 40 Züge + 30 min + 30 Sek pro Zug"]
[WhiteElo "1541"]
[BlackElo "1701"]

1. e4 {[%clk 01:30:57]} {[%emt 00:00:02]} c6 {[%clk 01:30:54]} {[%emt
00:00:06]} 2. d4 {[%clk 01:30:45]} {[%emt 00:00:43]} d5 {[%clk 01:31:16]}
{[%emt 00:00:08]} 3. exd5 {[%clk 01:30:53]} {[%emt 00:00:22]} cxd5 {[%clk
01:31:37]} {[%emt 00:00:09]} 4. Bd3 {[%clk 01:31:18]} {[%emt 00:00:05]} Nc6
{[%clk 01:31:40]} {[%emt 00:00:27]} 5. c3 {[%clk 01:31:41]} {[%emt 00:00:07]}
Nf6 {[%clk 01:31:29]} {[%emt 00:00:40]} 6. Bg5 {[%clk 01:28:23]} {[%emt
00:03:49]} e6 {[%clk 01:28:26]} {[%emt 00:03:33]} 7. Nd2 {[%clk 01:24:51]}
{[%emt 00:04:01]} Be7 {[%clk 01:27:04]} {[%emt 00:01:52]} 8. Ne2 {[%clk
01:19:29]} {[%emt 00:05:52]} a6 {[%clk 01:24:58]} {[%emt 00:02:36]} 9. O-O
{[%clk 01:19:40]} {[%emt 00:00:19]} Qc7 {[%clk 01:23:55]} {[%emt 00:01:33]} 10.
f4 {[%clk 01:16:48]} {[%emt 00:03:22]} Ng4 {[%clk 01:19:03]} {[%emt 00:05:22]}
11. Rf3 {[%clk 01:06:53]} {[%emt 00:10:26]} Bxg5 {[%clk 01:04:18]} {[%emt
00:15:14]} 12. fxg5 {[%clk 01:04:19]} {[%emt 00:03:05]} Qxh2+ {[%clk 01:02:45]}
{[%emt 00:02:02]} 13. Kf1 {[%clk 01:04:02]} {[%emt 00:00:47]} Qh1+ {[%clk
01:01:12]} {[%emt 00:02:03]} 14. Ng1 {[%clk 01:03:35]} {[%emt 00:00:57]} Nh2+
{[%clk 00:58:21]} {[%emt 00:03:21]} 15. Kf2 {[%clk 01:03:51]} {[%emt 00:00:14]}
Nxf3 {[%clk 00:52:21]} {[%emt 00:06:30]} 16. Ndxf3 {[%clk 01:03:32]} {[%emt
00:00:49]} Qh5 {[%clk 00:36:01]} {[%emt 00:16:50]} 17. Qc2 {[%clk 01:02:40]}
{[%emt 00:01:22]} Bd7 {[%clk 00:32:05]} 1/2-1/2

[Event "2. Itzehoer Schach Open"]
[Site "Itzehoe, Germany"]
[Date "2023.04.29"]
[Round "1.22"]
[White "Trapp, Hannes"]
[Black "Beth, Felix"]
[Result "1-0"]
[TimeControl "90 min / 40 Züge + 30 min + 30 Sek pro Zug"]
[WhiteElo "1677"]
[BlackElo "1498"]

1. e4 {[%clk 01:30:55]} {[%emt 00:00:04]} Nc6 {[%clk 01:30:54]} {[%emt
00:00:07]} 2. Nc3 {[%clk 01:31:11]} {[%emt 00:00:14]} e6 {[%clk 01:31:19]}
{[%emt 00:00:05]} 3. d4 {[%clk 01:30:25]} {[%emt 00:01:16]} Bb4 {[%clk
01:31:39]} {[%emt 00:00:10]} 4. Nge2 {[%clk 01:30:30]} {[%emt 00:00:25]} b6
{[%clk 01:32:05]} {[%emt 00:00:04]} 5. a3 {[%clk 01:30:37]} {[%emt 00:00:23]}
Be7 {[%clk 01:31:57]} {[%emt 00:00:37]} 6. Bf4 {[%clk 01:30:24]} {[%emt
00:00:43]} Bb7 {[%clk 01:32:22]} {[%emt 00:00:05]} 7. Ng3 {[%clk 01:29:12]}
{[%emt 00:01:41]} Bf6 {[%clk 01:32:26]} {[%emt 00:00:27]} 8. e5 {[%clk
01:25:49]} {[%emt 00:03:53]} Bg5 {[%clk 01:32:22]} {[%emt 00:00:34]} 9. Be3
{[%clk 01:25:40]} {[%emt 00:00:39]} Nge7 {[%clk 01:32:14]} {[%emt 00:00:38]} 10.
Bxg5 {[%clk 01:26:00]} {[%emt 00:00:10]} h6 {[%clk 01:32:33]} {[%emt 00:00:12]}
11. Be3 {[%clk 01:26:22]} {[%emt 00:00:07]} O-O {[%clk 01:32:33]} {[%emt
00:00:30]} 12. Qd2 {[%clk 01:26:41]} {[%emt 00:00:10]} d5 {[%clk 01:31:59]}
{[%emt 00:01:05]} 13. Bd3 {[%clk 01:27:03]} {[%emt 00:00:07]} f5 {[%clk
01:31:58]} {[%emt 00:00:32]} 14. exf6 {[%clk 01:27:14]} {[%emt 00:00:19]} Rxf6
{[%clk 01:32:14]} {[%emt 00:00:14]} 15. O-O-O {[%clk 01:27:19]} {[%emt
00:00:24]} Qd6 {[%clk 01:32:33]} {[%emt 00:00:12]} 16. Nh5 {[%clk 01:26:43]}
{[%emt 00:01:05]} Rf7 {[%clk 01:31:39]} {[%emt 00:01:24]} 17. Rde1 {[%clk
01:26:04]} {[%emt 00:01:09]} g6 {[%clk 01:31:45]} {[%emt 00:00:24]} 18. Nf4
{[%clk 01:24:34]} {[%emt 00:02:00]} Nf5 {[%clk 01:31:50]} {[%emt 00:00:26]} 19.
Nxg6 {[%clk 01:23:43]} {[%emt 00:01:21]} Nxe3 {[%clk 01:32:10]} {[%emt
00:00:10]} 20. Qxe3 {[%clk 01:23:51]} {[%emt 00:00:22]} Rf6 {[%clk 01:32:33]}
{[%emt 00:00:07]} 21. Qxh6 {[%clk 01:22:56]} {[%emt 00:01:25]} Nxd4 {[%clk
01:31:23]} {[%emt 00:01:41]} 22. Qh8+ {[%clk 01:22:56]} {[%emt 00:00:28]} Kf7
{[%clk 01:31:47]} {[%emt 00:00:06]} 23. Ne5+ {[%clk 01:23:13]} {[%emt
00:00:14]} Ke7 {[%clk 01:31:00]} {[%emt 00:01:17]} 24. Qg7+ {[%clk 01:23:35]}
{[%emt 00:00:07]} Kd8 {[%clk 01:30:44]} {[%emt 00:00:46]} 25. Qxf6+ {[%clk
01:23:56]} {[%emt 00:00:09]} Qe7 {[%clk 01:31:02]} {[%emt 00:00:13]} 26. Nf7+
{[%clk 01:23:58]} {[%emt 00:00:27]} Ke8 {[%clk 01:31:13]} {[%emt 00:00:19]} 27.
Qxd4 {[%clk 01:24:14]} {[%emt 00:00:14]} Kxf7 {[%clk 01:31:21]} {[%emt
00:00:19]} 28. Nxd5 {[%clk 01:24:23]} {[%emt 00:00:24]} Bxd5 {[%clk 01:31:40]}
{[%emt 00:00:12]} 29. Qxd5 {[%clk 01:24:37]} {[%emt 00:00:15]} Rg8 {[%clk
01:31:47]} {[%emt 00:00:24]} 30. Qe4 {[%clk 01:24:35]} {[%emt 00:00:31]} Qg5+
{[%clk 01:31:39]} {[%emt 00:00:39]} 31. Kb1 {[%clk 01:24:29]} {[%emt 00:00:36]}
Qd5 {[%clk 01:31:23]} {[%emt 00:00:45]} 32. g3 {[%clk 01:24:11]} {[%emt
00:00:49]} Rg7 {[%clk 01:31:04]} {[%emt 00:00:48]} 33. Bc4 {[%emt 00:01:05]}
1-0

[Event "2. Itzehoer Schach Open"]
[Site "Itzehoe, Germany"]
[Date "2023.04.29"]
[Round "1.31"]
[White "Dau-Schmidt, Piet"]
[Black "Ploog, Jakob"]
[Result "0-1"]
[TimeControl "90 min / 40 Züge + 30 min + 30 Sek pro Zug"]
[WhiteElo "1606"]
[BlackElo "1392"]

1. d4 {[%clk 01:30:58]} d5 {[%clk 01:30:35]} {[%emt 00:00:26]} 2. c4 {[%clk
01:31:24]} {[%emt 00:00:04]} e5 {[%clk 01:30:56]} {[%emt 00:00:09]} 3. dxe5
{[%clk 01:31:46]} {[%emt 00:00:08]} d4 {[%clk 01:31:08]} {[%emt 00:00:19]} 4.
Nf3 {[%clk 01:31:50]} {[%emt 00:00:25]} Nc6 {[%clk 01:31:21]} {[%emt 00:00:18]}
5. Bg5 {[%clk 01:31:02]} {[%emt 00:01:17]} Bb4+ {[%emt 00:00:43]} 6. Nbd2
{[%clk 01:31:13]} Nge7 {[%clk 01:31:25]} {[%emt 00:00:33]} 7. a3 {[%clk
01:29:34]} {[%emt 00:02:09]} Bxd2+ {[%clk 01:31:35]} {[%emt 00:00:20]} 8. Qxd2
{[%clk 01:29:50]} {[%emt 00:00:14]} Bg4 {[%clk 01:30:55]} {[%emt 00:01:10]} 9.
Bxe7 {[%clk 01:29:26]} {[%emt 00:00:55]} Qxe7 {[%clk 01:30:59]} {[%emt
00:00:25]} 10. Qf4 {[%clk 01:18:56]} {[%emt 00:11:00]} Bxf3 {[%clk 01:31:06]}
{[%emt 00:00:22]} 11. Qxf3 {[%clk 01:14:46]} {[%emt 00:04:42]} Qxe5 {[%clk
01:31:13]} {[%emt 00:00:23]} 12. O-O-O {[%clk 01:08:15]} {[%emt 00:07:01]} O-O
{[%clk 01:26:42]} {[%emt 00:05:02]} 13. g3 {[%clk 01:07:58]} {[%emt 00:00:46]}
Rad8 {[%clk 01:26:49]} {[%emt 00:00:23]} 14. Bg2 {[%clk 01:07:41]} {[%emt
00:00:46]} Na5 {[%clk 01:27:08]} {[%emt 00:00:11]} 15. Qd3 {[%clk 01:07:06]}
{[%emt 00:01:05]} c5 {[%clk 01:25:32]} {[%emt 00:02:06]} 16. b4 {[%clk
01:04:43]} {[%emt 00:02:53]} cxb4 {[%clk 01:25:46]} {[%emt 00:00:17]} 17. axb4
{[%clk 01:05:06]} {[%emt 00:00:07]} Nxc4 {[%clk 01:25:50]} {[%emt 00:00:26]} 18.
Bxb7 {[%clk 01:02:42]} {[%emt 00:02:54]} Qb5 {[%clk 01:26:00]} {[%emt
00:00:20]} 19. Be4 {[%clk 00:59:30]} {[%emt 00:03:41]} Qxb4 {[%clk 01:25:02]}
{[%emt 00:01:29]} 20. Qb1 {[%clk 00:56:26]} {[%emt 00:03:35]} Qa3+ {[%clk
01:24:55]} {[%emt 00:00:37]} 0-1

[Event "2. Itzehoer Schach Open"]
[Site "Itzehoe, Germany"]
[Date "2023.04.29"]
[Round "1.7"]
[White "Harten, Jan"]
[Black "Roebers, Jan"]
[Result "0-1"]
[TimeControl "90 min / 40 Züge + 30 min + 30 Sek pro Zug"]
[WhiteElo "1819"]
[BlackElo "2083"]

1. e4 {[%clk 01:30:56]} {[%emt 00:00:03]} g6 {[%clk 01:30:30]} {[%emt
00:00:31]} 2. Nf3 {[%clk 01:30:43]} {[%emt 00:00:43]} Bg7 {[%clk 01:30:46]}
{[%emt 00:00:13]} 3. d4 {[%clk 01:30:43]} {[%emt 00:00:30]} d6 {[%clk
01:30:50]} {[%emt 00:00:26]} 4. Bc4 {[%clk 01:30:49]} {[%emt 00:00:25]} Nf6
{[%clk 01:30:13]} {[%emt 00:01:06]} 5. Nbd2 {[%clk 01:29:42]} {[%emt 00:01:38]}
c6 {[%clk 01:27:34]} {[%emt 00:03:09]} 6. c3 {[%clk 01:29:14]} {[%emt
00:00:58]} O-O {[%clk 01:27:14]} {[%emt 00:00:50]} 7. O-O {[%clk 01:28:53]}
{[%emt 00:00:51]} b5 {[%clk 01:25:42]} {[%emt 00:02:02]} 8. Bd3 {[%clk
01:28:41]} {[%emt 00:00:42]} a6 {[%clk 01:22:31]} {[%emt 00:03:41]} 9. Re1
{[%clk 01:28:01]} {[%emt 00:01:09]} Qc7 {[%clk 01:18:27]} {[%emt 00:04:35]} 10.
Nf1 {[%clk 01:23:30]} {[%emt 00:05:00]} e5 {[%clk 01:18:01]} {[%emt 00:00:57]}
11. h3 {[%clk 01:20:48]} {[%emt 00:03:12]} Re8 {[%clk 01:14:46]} {[%emt
00:03:44]} 12. a4 {[%clk 01:17:18]} {[%emt 00:04:01]} Bb7 {[%clk 01:14:30]}
{[%emt 00:00:45]} 13. axb5 {[%clk 01:15:38]} {[%emt 00:02:11]} axb5 {[%clk
01:14:29]} {[%emt 00:00:31]} 14. Ng3 {[%clk 01:15:19]} {[%emt 00:00:48]} Rxa1
{[%clk 01:14:45]} {[%emt 00:00:15]} 0-1

[Event "2. Itzehoer Schach Open"]
[Site "Itzehoe, Germany"]
[Date "2023.04.29"]
[Round "1.34"]
[White "Knudsen, Finn Luca"]
[Black "Pitic, Alen"]
[Result "1/2-1/2"]
[TimeControl "90 min / 40 Züge + 30 min + 30 Sek pro Zug"]
[WhiteElo "929"]
[BlackElo "1276"]

1. e4 {[%clk 01:30:55]} {[%emt 00:00:05]} c6 {[%clk 01:30:46]} {[%emt
00:00:14]} 2. Nf3 {[%clk 01:29:33]} {[%emt 00:01:52]} d5 {[%clk 01:30:54]}
{[%emt 00:00:22]} 3. exd5 {[%clk 01:29:11]} {[%emt 00:00:52]} cxd5 {[%clk
01:31:15]} {[%emt 00:00:09]} 4. d4 {[%clk 01:28:42]} {[%emt 00:00:58]} Nf6
{[%clk 01:31:12]} {[%emt 00:00:33]} 5. Bf4 {[%clk 01:26:49]} {[%emt 00:02:23]}
Bg4 {[%clk 01:30:35]} {[%emt 00:01:07]} 6. h3 {[%clk 01:24:47]} {[%emt
00:02:33]} Bxf3 {[%clk 01:30:30]} {[%emt 00:00:35]} 7. Qxf3 {[%clk 01:23:56]}
{[%emt 00:01:21]} Nc6 {[%clk 01:28:36]} {[%emt 00:02:24]} 8. Qe3 {[%clk
01:21:52]} {[%emt 00:02:34]} a6 {[%clk 01:26:56]} {[%emt 00:02:10]} 9. Nd2
{[%clk 01:20:43]} {[%emt 00:01:38]} Nb4 {[%clk 01:25:30]} {[%emt 00:01:56]} 10.
Qb3 {[%clk 01:16:35]} {[%emt 00:04:39]} Nc6 {[%clk 01:24:33]} {[%emt 00:01:27]}
11. Nf3 {[%clk 01:15:39]} {[%emt 00:01:26]} b5 {[%clk 01:22:14]} {[%emt
00:02:49]} 12. O-O-O {[%clk 01:09:04]} {[%emt 00:07:04]} Ne4 {[%clk 01:19:57]}
{[%emt 00:02:47]} 13. Qe3 {[%clk 01:05:42]} {[%emt 00:03:53]} e6 {[%clk
01:19:11]} {[%emt 00:01:16]} 14. a3 {[%clk 01:05:12]} {[%emt 00:01:00]} Bd6
{[%clk 01:18:59]} {[%emt 00:00:42]} 15. Ne5 {[%clk 01:04:33]} {[%emt 00:01:08]}
Rc8 {[%clk 01:13:32]} {[%emt 00:05:58]} 16. f3 {[%clk 00:59:07]} {[%emt
00:05:56]} Nxe5 {[%clk 01:11:09]} {[%emt 00:02:52]} 17. dxe5 {[%clk 00:58:04]}
{[%emt 00:01:33]} Bc5 {[%clk 01:11:27]} {[%emt 00:00:13]} 18. Qb3 {[%clk
00:55:27]} {[%emt 00:03:08]} Nf2 {[%clk 01:11:38]} {[%emt 00:00:18]} 19. Bd3
{[%clk 00:54:16]} {[%emt 00:01:40]} Nxh1 {[%clk 01:11:28]} {[%emt 00:00:40]} 20.
Rxh1 {[%clk 00:54:37]} {[%emt 00:00:09]} Qb6 {[%clk 01:11:00]} {[%emt
00:00:58]} 21. Re1 {[%clk 00:53:07]} {[%emt 00:02:01]} O-O {[%clk 01:10:52]}
{[%emt 00:00:37]} 22. c3 {[%clk 00:49:54]} {[%emt 00:03:43]} b4 {[%clk
01:09:32]} {[%emt 00:01:50]} 23. axb4 {[%emt 00:05:34]} Qb8 {[%clk 01:07:55]}
{[%emt 00:00:50]} 24. Kb1 {[%clk 00:42:07]} {[%emt 00:04:31]} a5 {[%clk
01:06:52]} {[%emt 00:01:32]} 25. Be3 {[%clk 00:41:16]} {[%emt 00:01:21]} Bxe3
{[%clk 01:06:19]} {[%emt 00:01:04]} 26. Rxe3 {[%clk 00:41:29]} {[%emt
00:00:16]} axb4 {[%clk 01:06:29]} {[%emt 00:00:20]} 27. Qxb4 {[%clk 00:39:55]}
{[%emt 00:02:04]} Qxb4 {[%clk 01:06:36]} {[%emt 00:00:23]} 28. cxb4 {[%clk
00:40:14]} {[%emt 00:00:11]} Rb8 {[%clk 01:06:13]} {[%emt 00:00:53]} 29. b5
{[%clk 00:39:56]} {[%emt 00:00:48]} Rfc8 {[%clk 01:06:00]} {[%emt 00:00:42]} 30.
b4 {[%clk 00:39:27]} {[%emt 00:00:59]} g6 {[%clk 01:05:59]} {[%emt 00:00:31]}
31. Kb2 {[%clk 00:39:36]} {[%emt 00:00:21]} Kg7 {[%clk 01:05:39]} {[%emt
00:00:49]} 32. g4 {[%clk 00:38:39]} {[%emt 00:01:28]} h5 {[%clk 01:05:53]}
{[%emt 00:00:16]} 33. g5 {[%clk 00:37:50]} {[%emt 00:01:19]} Kf8 {[%clk
01:03:21]} {[%emt 00:03:02]} 34. Re1 {[%clk 00:37:09]} {[%emt 00:01:11]} d4
{[%clk 01:01:05]} {[%emt 00:02:46]} 35. Rc1 {[%clk 00:36:13]} {[%emt 00:01:26]}
Rxc1 {[%clk 01:01:11]} {[%emt 00:00:25]} 36. Kxc1 {[%clk 00:36:31]} {[%emt
00:00:11]} Rc8+ {[%clk 01:01:33]} {[%emt 00:00:07]} 37. Kb2 {[%clk 00:34:58]}
{[%emt 00:02:03]} Rc3 {[%clk 01:01:50]} {[%emt 00:00:13]} 38. Be4 {[%clk
00:34:42]} {[%emt 00:00:46]} Ke7 {[%clk 01:01:16]} {[%emt 00:01:04]} 39. b6
{[%clk 00:35:00]} {[%emt 00:00:12]} Kd8 {[%clk 01:00:44]} {[%emt 00:01:02]} 40.
b7 {[%clk 00:35:11]} {[%emt 00:00:20]} Kc7 {[%clk 01:01:07]} {[%emt 00:00:06]}
41. b5 {[%clk 00:33:42]} {[%emt 00:01:59]} Rc5 {[%clk 01:01:01]} {[%emt
00:00:35]} 42. b6+ {[%clk 00:33:17]} {[%emt 00:00:55]} Kb8 {[%clk 01:01:21]}
{[%emt 00:00:11]} 43. Kb3 {[%clk 00:33:20]} {[%emt 00:00:27]} d3 {[%clk
01:00:39]} {[%emt 00:01:12]} 44. Bxd3 {[%clk 00:32:56]} {[%emt 00:00:54]} Kxb7
{[%clk 01:01:03]} {[%emt 00:00:06]} 45. f4 {[%clk 00:32:55]} {[%emt 00:00:32]}
Kxb6 {[%clk 01:01:21]} {[%emt 00:00:11]} 46. Kb4 {[%clk 00:33:00]} {[%emt
00:00:26]} Rd5 {[%clk 01:00:37]} {[%emt 00:01:14]} 47. Kc4 {[%clk 00:32:27]}
{[%emt 00:01:03]} Kc6 {[%clk 00:59:32]} {[%emt 00:01:35]} 48. h4 {[%clk
00:32:06]} {[%emt 00:00:52]} Kd7 {[%clk 00:59:22]} {[%emt 00:00:40]} 49. Kc3
{[%clk 00:30:36]} {[%emt 00:02:00]} Ke7 {[%clk 00:58:56]} {[%emt 00:00:54]} 50.
Kd2 {[%clk 00:28:49]} {[%emt 00:02:17]} Rd4 {[%clk 00:55:36]} {[%emt 00:03:49]}
51. Ke3 {[%clk 00:29:04]} {[%emt 00:00:15]} Rd8 {[%clk 00:55:04]} {[%emt
00:01:03]} 52. Bc2 {[%clk 00:28:47]} {[%emt 00:00:47]} f5 {[%clk 00:52:45]}
{[%emt 00:02:48]} 1/2-1/2